{"text_format":"1","workbook":"xlsx","n_sheets":2,"sheets":["DATABASE KASIR","Sheet2"],"not_rendered":{"charts":0,"images":0,"macros":1,"external_links":0,"defined_names":0,"comments":0,"pivot_tables":0},"unopened":[],"bounds":{"document_bytes":16777216,"sheet_cells":100000,"rows_first":2000,"rows_last":500,"rows_between":2000,"halvings":0,"cell_chars":16384,"cell_head_chars":4096},"cells_cut":0,"cells_raw":0,"read":"whole","date_system":"1900"}

{"sheet":"DATABASE KASIR","index":0,"n_rows":30,"n_cols":9,"rows_kept":30,"cut":false,"hidden":false,"merged":[]}
["NO","NAMA PIC","KODE ","TANGGAL","SALDO KASIR","POS KETERANGAN","JUMLAH"]
[null,null,null,null,null,null,null,null,{"$f":"E2","v":0}]
[null,null,null,null,null,null,null,null,{"$f":"I2+G3-H3","v":0}]
[null,null,null,null,null,null,null,null,{"$f":"I3+G4-H4","v":0}]
[null,null,null,null,null,null,null,null,0]
[null,null,null,null,null,null,null,null,0]
[null,null,null,null,null,null,null,null,0]
[null,null,null,null,null,null,null,null,0]
[null,null,null,null,null,null,null,null,0]
[null,null,null,null,null,null,null,null,0]
[null,null,null,null,null,null,null,null,0]
[null,null,null,null,null,null,null,null,0]
[null,null,null,null,null,null,null,null,0]
[null,null,null,null,null,null,null,null,0]
[null,null,null,null,null,null,null,null,0]
[null,null,null,null,null,null,null,null,0]
[null,null,null,null,null,null,null,null,0]
[null,null,null,null,null,null,null,null,0]
[null,null,null,null,null,null,null,null,0]
[null,null,null,null,null,null,null,null,0]
[null,null,null,null,null,null,null,null,0]
[null,null,null,null,null,null,null,null,0]
[null,null,null,null,null,null,null,null,0]
[null,null,null,null,null,null,null,null,0]
[null,null,null,null,null,null,null,null,0]
[null,null,null,null,null,null,null,null,0]
[null,null,null,null,null,null,null,null,0]
[null,null,null,null,null,null,null,null,0]
[null,null,null,null,null,null,null,null,0]
[null,null,null,null,null,null,null,null,0]

{"sheet":"Sheet2","index":1,"n_rows":7,"n_cols":3,"rows_kept":7,"cut":false,"hidden":false,"merged":[]}
[]
[null,"SALES","TLPN CLARA"]
[null,"BAYAR SALES"]
[null,"BON"]
[null,"BIAYA LISTRIK"]
[null,"PULSA"]
[null,"BIAYA LAIN-LAIN"]